[Event "*** Titled Tuesday Blitz"]
[Site "Chess.com"]
[Date "2021.03.02"]
[Round "7"]
[White "GMJustin"]
[Black "c_r_e_e_p_e_r"]
[Result "0-1"]
[WhiteElo "2244"]
[BlackElo "2415"]
[TimeControl "180+1"]
[EndTime "11:16:27 PST"]
[Termination "c_r_e_e_p_e_r won on time"]

1. d4 {[%clk 0:02:56.4]} 1... Nf6 {[%clk 0:03:00.1]} 2. c4 {[%clk 0:02:55.7]}
2... e6 {[%clk 0:03:00.6]} 3. Nf3 {[%clk 0:02:54.8]} 3... b6 {[%clk 0:03:00.6]}
4. g3 {[%clk 0:02:52.1]} 4... Ba6 {[%clk 0:03:01]} 5. b3 {[%clk 0:02:45.1]} 5...
c5 {[%clk 0:02:58.5]} 6. d5 {[%clk 0:02:36.8]} 6... exd5 {[%clk 0:02:59.4]} 7.
cxd5 {[%clk 0:02:36.2]} 7... g6 {[%clk 0:03:00.1]} 8. Bb2 {[%clk 0:02:20.6]}
8... Bg7 {[%clk 0:03:00.5]} 9. d6 {[%clk 0:02:08.3]} 9... O-O {[%clk 0:02:59.6]}
10. Bg2 {[%clk 0:01:58.6]} 10... Re8 {[%clk 0:02:59.2]} 11. Ne5 {[%clk
0:01:53.3]} 11... Nc6 {[%clk 0:02:54.2]} 12. Bxc6 {[%clk 0:01:26.3]} 12... dxc6
{[%clk 0:02:51.9]} 13. O-O {[%clk 0:01:25.3]} 13... Re6 {[%clk 0:02:40.4]} 14.
Qc2 {[%clk 0:00:33.2]} 14... Qxd6 {[%clk 0:02:34.7]} 15. Rd1 {[%clk 0:00:18.5]}
15... Qe7 {[%clk 0:02:34.5]} 16. f4 {[%clk 0:00:09]} 16... Nd5 {[%clk
0:02:30.5]} 17. Qc1 {[%clk 0:00:02.9]} 17... Bxe2 {[%clk 0:02:26.2]} 18. Re1
{[%clk 0:00:02.5]} 18... Ba6 {[%clk 0:02:22.1]} 19. Na3 {[%clk 0:00:02.6]} 19...
Re8 {[%clk 0:02:15.4]} 20. Nac4 {[%clk 0:00:01.9]} 20... b5 {[%clk 0:01:47.3]}
21. Qc2 {[%clk 0:00:02.1]} 21... bxc4 {[%clk 0:01:46]} 0-1

[Event "*** Titled Tuesday Blitz"]
[Site "Chess.com"]
[Date "2021.03.02"]
[Round "7"]
[White "BabyBoss31"]
[Black "FontVella8"]
[Result "0-1"]
[WhiteElo "2342"]
[BlackElo "2490"]
[TimeControl "180+1"]
[EndTime "11:16:29 PST"]
[Termination "FontVella8 won by resignation"]

1. d4 {[%clk 0:03:00.9]} 1... Nf6 {[%clk 0:02:59]} 2. Bg5 {[%clk 0:02:58.6]}
2... e6 {[%clk 0:02:58]} 3. e4 {[%clk 0:02:57.1]} 3... h6 {[%clk 0:02:58.3]} 4.
Bxf6 {[%clk 0:02:57.7]} 4... Qxf6 {[%clk 0:02:58.7]} 5. c3 {[%clk 0:02:58.3]}
5... d5 {[%clk 0:02:54.9]} 6. Bd3 {[%clk 0:02:58]} 6... Qd8 {[%clk 0:02:40.1]}
7. Nd2 {[%clk 0:02:54]} 7... c5 {[%clk 0:02:40]} 8. Ne2 {[%clk 0:02:53.4]} 8...
Nc6 {[%clk 0:02:40.2]} 9. O-O {[%clk 0:02:53.4]} 9... cxd4 {[%clk 0:02:35.9]}
10. cxd4 {[%clk 0:02:54.3]} 10... Qb6 {[%clk 0:02:35.6]} 11. Nb3 {[%clk
0:02:52.7]} 11... dxe4 {[%clk 0:02:30.6]} 12. Bxe4 {[%clk 0:02:52.5]} 12... Be7
{[%clk 0:02:30.7]} 13. Rc1 {[%clk 0:02:50.4]} 13... O-O {[%clk 0:02:29.8]} 14.
Bb1 {[%clk 0:02:50.4]} 14... Bf6 {[%clk 0:02:25.7]} 15. Qc2 {[%clk 0:02:40.3]}
15... g6 {[%clk 0:02:25.6]} 16. Rfd1 {[%clk 0:02:40.8]} 16... Ne7 {[%clk
0:02:24.5]} 17. Qc5 {[%clk 0:02:35.4]} 17... Nd5 {[%clk 0:02:14.6]} 18. Nc3
{[%clk 0:02:27.8]} 18... Qxc5 {[%clk 0:02:03.1]} 19. Nxc5 {[%clk 0:02:28.7]}
19... Nxc3 {[%clk 0:02:01.7]} 20. Rxc3 {[%clk 0:02:27.1]} 20... b6 {[%clk
0:02:01.8]} 21. Ne4 {[%clk 0:02:26.9]} 21... Bg7 {[%clk 0:01:57.3]} 22. Rc7
{[%clk 0:02:26.4]} 22... Ba6 {[%clk 0:01:56.2]} 23. d5 {[%clk 0:02:21.6]} 23...
exd5 {[%clk 0:01:50.8]} 24. Rxd5 {[%clk 0:02:22.5]} 24... Bxb2 {[%clk
0:01:45.6]} 25. h4 {[%clk 0:02:17.9]} 25... Rad8 {[%clk 0:01:39]} 26. Rdd7
{[%clk 0:02:16.4]} 26... Rxd7 {[%clk 0:01:38.6]} 27. Rxd7 {[%clk 0:02:17.3]}
27... Rc8 {[%clk 0:01:21.8]} 28. Nd2 {[%clk 0:01:52.1]} 28... Rc1+ {[%clk
0:01:14.6]} 29. Kh2 {[%clk 0:01:51.5]} 29... Bc3 {[%clk 0:01:14.3]} 30. Bd3
{[%clk 0:01:46.3]} 30... Bxd3 {[%clk 0:01:10.5]} 31. Rxd3 {[%clk 0:01:47.2]}
31... Bxd2 {[%clk 0:01:10.5]} 32. Rxd2 {[%clk 0:01:47.3]} 32... Rc7 {[%clk
0:01:10.8]} 33. Rd8+ {[%clk 0:01:44.8]} 33... Kg7 {[%clk 0:01:10.6]} 34. g3
{[%clk 0:01:45.3]} 34... Rc2 {[%clk 0:01:06]} 35. Kg2 {[%clk 0:01:44]} 35...
Rxa2 {[%clk 0:01:05.4]} 36. Rb8 {[%clk 0:01:44]} 36... Rb2 {[%clk 0:01:03]} 37.
Rb7 {[%clk 0:01:44.9]} 37... a5 {[%clk 0:01:02.5]} 38. Kf3 {[%clk 0:01:45]}
38... a4 {[%clk 0:01:02.2]} 39. h5 {[%clk 0:01:44.8]} 39... a3 {[%clk
0:01:00.4]} 40. hxg6 {[%clk 0:01:44.6]} 40... Kxg6 {[%clk 0:01:00.6]} 41. Kg4
{[%clk 0:01:44.4]} 41... a2 {[%clk 0:00:59.3]} 42. Ra7 {[%clk 0:01:43.8]} 42...
b5 {[%clk 0:00:59.4]} 43. f4 {[%clk 0:01:44.1]} 43... b4 {[%clk 0:00:59.2]} 44.
f5+ {[%clk 0:01:44.7]} 0-1

[Event "*** Titled Tuesday Blitz"]
[Site "Chess.com"]
[Date "2021.03.02"]
[Round "7"]
[White "anon481216"]
[Black "juancruzarias"]
[Result "1-0"]
[WhiteElo "2499"]
[BlackElo "2626"]
[TimeControl "180+1"]
[EndTime "11:16:33 PST"]
[Termination "anon481216 won by resignation"]

1. d4 {[%clk 0:03:00.9]} 1... Nf6 {[%clk 0:01:50.1]} 2. c4 {[%clk 0:03:00.1]}
2... c5 {[%clk 0:01:50.2]} 3. d5 {[%clk 0:03:00.2]} 3... e5 {[%clk 0:01:49]} 4.
Nc3 {[%clk 0:03:00.1]} 4... d6 {[%clk 0:01:49.4]} 5. e4 {[%clk 0:03:00.6]} 5...
Be7 {[%clk 0:01:49.8]} 6. g3 {[%clk 0:03:00.7]} 6... O-O {[%clk 0:01:48.9]} 7.
Bg2 {[%clk 0:03:00.6]} 7... Nbd7 {[%clk 0:01:49.4]} 8. Nge2 {[%clk 0:03:00.6]}
8... Ne8 {[%clk 0:01:48.1]} 9. O-O {[%clk 0:02:59.7]} 9... Nc7 {[%clk
0:01:48.4]} 10. a4 {[%clk 0:02:58.1]} 10... Rb8 {[%clk 0:01:48.7]} 11. Be3
{[%clk 0:02:37.4]} 11... b6 {[%clk 0:01:46.3]} 12. Qd2 {[%clk 0:02:25]} 12... a6
{[%clk 0:01:45.7]} 13. f4 {[%clk 0:02:24.5]} 13... b5 {[%clk 0:01:44.4]} 14.
axb5 {[%clk 0:02:22.7]} 14... axb5 {[%clk 0:01:45.3]} 15. b3 {[%clk 0:02:22.8]}
15... bxc4 {[%clk 0:01:43.1]} 16. bxc4 {[%clk 0:02:22.7]} 16... Rb4 {[%clk
0:01:43.2]} 17. Ra4 {[%clk 0:02:19.2]} 17... Nb6 {[%clk 0:01:37.6]} 18. Rxb4
{[%clk 0:02:18.7]} 18... cxb4 {[%clk 0:01:37.5]} 19. Bxb6 {[%clk 0:02:19]} 19...
bxc3 {[%clk 0:01:35.6]} 20. Nxc3 {[%clk 0:02:18.4]} 20... Qd7 {[%clk 0:01:17.3]}
21. fxe5 {[%clk 0:02:17]} 21... dxe5 {[%clk 0:01:14.2]} 22. c5 {[%clk 0:02:16]}
22... Na8 {[%clk 0:01:14.5]} 23. c6 {[%clk 0:02:08.3]} 23... Qd6 {[%clk
0:01:14.8]} 24. Be3 {[%clk 0:02:05.4]} 24... Nc7 {[%clk 0:01:13]} 25. Rb1 {[%clk
0:01:48.6]} 25... Rd8 {[%clk 0:01:12.5]} 26. Nb5 {[%clk 0:01:44.7]} 26... Nxb5
{[%clk 0:01:10]} 27. Rxb5 {[%clk 0:01:44.5]} 27... Ba6 {[%clk 0:01:10.5]} 28.
Rb6 {[%clk 0:01:42.5]} 28... Qa3 {[%clk 0:01:10]} 29. h3 {[%clk 0:01:30.2]}
29... Bc5 {[%clk 0:01:10]} 30. Bxc5 {[%clk 0:01:28.1]} 30... Qxc5+ {[%clk
0:01:09.8]} 31. Qf2 {[%clk 0:01:28.6]} 31... Qc4 {[%clk 0:01:07.1]} 32. c7
{[%clk 0:01:23.7]} 32... Rc8 {[%clk 0:01:03.6]} 33. d6 {[%clk 0:01:23.8]} 33...
Qc1+ {[%clk 0:00:59.1]} 34. Kh2 {[%clk 0:01:23.4]} 1-0

[Event "*** Titled Tuesday Blitz"]
[Site "Chess.com"]
[Date "2021.03.02"]
[Round "7"]
[White "Cuajada_Zero"]
[Black "ViditYT"]
[Result "0-1"]
[WhiteElo "2295"]
[BlackElo "2948"]
[TimeControl "180+1"]
[EndTime "11:16:35 PST"]
[Termination "ViditYT won by resignation"]

1. d4 {[%clk 0:02:49.5]} 1... Nf6 {[%clk 0:02:59.5]} 2. c4 {[%clk 0:02:47.9]}
2... g6 {[%clk 0:02:59.6]} 3. Nc3 {[%clk 0:02:47.8]} 3... d5 {[%clk 0:03:00]} 4.
cxd5 {[%clk 0:02:45.4]} 4... Nxd5 {[%clk 0:03:00.9]} 5. e4 {[%clk 0:02:45.8]}
5... Nxc3 {[%clk 0:03:01.6]} 6. bxc3 {[%clk 0:02:46.3]} 6... Bg7 {[%clk
0:03:02.4]} 7. Nf3 {[%clk 0:02:46.1]} 7... c5 {[%clk 0:03:02.6]} 8. Be2 {[%clk
0:02:45.2]} 8... O-O {[%clk 0:03:00.5]} 9. O-O {[%clk 0:02:44.2]} 9... b6 {[%clk
0:03:01.2]} 10. Be3 {[%clk 0:02:41.8]} 10... Bb7 {[%clk 0:03:00.8]} 11. Qc2
{[%clk 0:02:35.1]} 11... Qc7 {[%clk 0:02:59.1]} 12. Rac1 {[%clk 0:02:31.2]}
12... cxd4 {[%clk 0:02:57.6]} 13. Bxd4 {[%clk 0:02:21.5]} 13... Bxd4 {[%clk
0:02:55.5]} 14. Nxd4 {[%clk 0:01:57]} 14... Nd7 {[%clk 0:02:55.2]} 15. f3 {[%clk
0:01:34.6]} 15... Rac8 {[%clk 0:02:49.5]} 16. Kh1 {[%clk 0:01:32.9]} 16... Ne5
{[%clk 0:02:47.1]} 17. Qa4 {[%clk 0:01:27.9]} 17... Qb8 {[%clk 0:02:46]} 18. Ba6
{[%clk 0:01:12.9]} 18... Bxa6 {[%clk 0:02:43.7]} 19. Qxa6 {[%clk 0:01:13.8]}
19... Rfd8 {[%clk 0:02:38.9]} 20. Rfd1 {[%clk 0:01:09.3]} 20... Rd7 {[%clk
0:02:20.2]} 21. Nb5 {[%clk 0:00:55.8]} 21... Nd3 {[%clk 0:01:54.4]} 22. Nxa7
{[%clk 0:00:15.2]} 22... Nf2+ {[%clk 0:01:53.1]} 23. Kg1 {[%clk 0:00:14.3]}
23... Rxa7 {[%clk 0:01:51.7]} 24. Qe2 {[%clk 0:00:03.8]} 24... Nxd1 {[%clk
0:01:51.3]} 0-1

[Event "*** Titled Tuesday Blitz"]
[Site "Chess.com"]
[Date "2021.03.02"]
[Round "7"]
[White "Hangar-18"]
[Black "SilviusTiberius"]
[Result "0-1"]
[WhiteElo "2373"]
[BlackElo "2518"]
[TimeControl "180+1"]
[EndTime "11:16:37 PST"]
[Termination "SilviusTiberius won by resignation"]

1. c4 {[%clk 0:03:00.9]} 1... e6 {[%clk 0:02:59.6]} 2. Nf3 {[%clk 0:03:00]} 2...
d5 {[%clk 0:02:59.7]} 3. e3 {[%clk 0:03:00.2]} 3... Nf6 {[%clk 0:02:59.2]} 4. d4
{[%clk 0:02:58.6]} 4... Be7 {[%clk 0:02:59]} 5. Nc3 {[%clk 0:02:55]} 5... O-O
{[%clk 0:02:59.1]} 6. Bd3 {[%clk 0:02:55]} 6... b6 {[%clk 0:02:47.6]} 7. O-O
{[%clk 0:02:54.5]} 7... Bb7 {[%clk 0:02:48]} 8. b3 {[%clk 0:02:54.5]} 8... Nbd7
{[%clk 0:02:46.9]} 9. Bb2 {[%clk 0:02:54.5]} 9... c5 {[%clk 0:02:47.4]} 10. Qe2
{[%clk 0:02:54.7]} 10... cxd4 {[%clk 0:02:44.1]} 11. exd4 {[%clk 0:02:53.2]}
11... Rc8 {[%clk 0:02:40.9]} 12. Rad1 {[%clk 0:02:52.8]} 12... Re8 {[%clk
0:02:40.7]} 13. Ne5 {[%clk 0:02:52]} 13... dxc4 {[%clk 0:02:27.6]} 14. bxc4
{[%clk 0:02:50.9]} 14... g6 {[%clk 0:01:53]} 15. f4 {[%clk 0:02:46.9]} 15... Bf8
{[%clk 0:01:50.9]} 16. Ne4 {[%clk 0:02:33.4]} 16... Nxe4 {[%clk 0:01:43.3]} 17.
Bxe4 {[%clk 0:02:33]} 17... Bxe4 {[%clk 0:01:42.2]} 18. Qxe4 {[%clk 0:02:33.9]}
18... Nxe5 {[%clk 0:01:39.4]} 19. dxe5 {[%clk 0:02:22]} 19... Qc7 {[%clk
0:01:36.6]} 20. Rc1 {[%clk 0:02:06.4]} 20... Red8 {[%clk 0:01:34.6]} 21. Kh1
{[%clk 0:02:03.9]} 21... Rd2 {[%clk 0:01:32.6]} 22. Bd4 {[%clk 0:01:50.2]} 22...
Rd8 {[%clk 0:01:21.7]} 23. Be3 {[%clk 0:01:46.6]} 23... Rxa2 {[%clk 0:01:21.3]}
24. f5 {[%clk 0:01:46.6]} 24... exf5 {[%clk 0:01:08.5]} 25. Qb1 {[%clk
0:01:46.1]} 25... Re2 {[%clk 0:01:04.7]} 26. Bg5 {[%clk 0:01:44.6]} 26... Rd4
{[%clk 0:00:52.2]} 27. Bf6 {[%clk 0:01:27]} 27... Rg4 {[%clk 0:00:49]} 28. Rg1
{[%clk 0:01:22.7]} 28... Qc6 {[%clk 0:00:47.6]} 29. Qb5 {[%clk 0:01:20.6]} 29...
Rgxg2 {[%clk 0:00:42.9]} 0-1

[Event "*** Titled Tuesday Blitz"]
[Site "Chess.com"]
[Date "2021.03.02"]
[Round "7"]
[White "beto-betun"]
[Black "pfalcon1949"]
[Result "1-0"]
[WhiteElo "2209"]
[BlackElo "2022"]
[TimeControl "180+1"]
[EndTime "11:16:51 PST"]
[Termination "beto-betun won by resignation"]

1. d4 {[%clk 0:03:00.9]} 1... Nf6 {[%clk 0:02:59.5]} 2. Nf3 {[%clk 0:03:01.2]}
2... d5 {[%clk 0:02:56.6]} 3. g3 {[%clk 0:03:01.6]} 3... e6 {[%clk 0:02:56.5]}
4. Bg2 {[%clk 0:02:59.5]} 4... Be7 {[%clk 0:02:57.4]} 5. O-O {[%clk 0:02:58.8]}
5... O-O {[%clk 0:02:58]} 6. c4 {[%clk 0:02:57.6]} 6... dxc4 {[%clk 0:02:57.6]}
7. Ne5 {[%clk 0:02:53.8]} 7... Nc6 {[%clk 0:02:55.5]} 8. Nxc6 {[%clk 0:02:30.4]}
8... bxc6 {[%clk 0:02:56.4]} 9. Nc3 {[%clk 0:02:29.2]} 9... Rb8 {[%clk
0:02:44.8]} 10. Bxc6 {[%clk 0:02:27.1]} 10... Rb6 {[%clk 0:02:43.1]} 11. Bg2
{[%clk 0:02:24.8]} 11... Bb7 {[%clk 0:02:43.3]} 12. e4 {[%clk 0:02:20.2]} 12...
c5 {[%clk 0:02:33.3]} 13. dxc5 {[%clk 0:02:11.4]} 13... Bxc5 {[%clk 0:02:31.9]}
14. Qxd8 {[%clk 0:02:08.2]} 14... Rxd8 {[%clk 0:02:30.5]} 15. Na4 {[%clk
0:02:08.6]} 15... Rc6 {[%clk 0:02:29.2]} 16. Nxc5 {[%clk 0:02:05.7]} 16... Rxc5
{[%clk 0:02:28.7]} 17. Be3 {[%clk 0:02:06.2]} 17... Rcc8 {[%clk 0:02:21.8]} 18.
f3 {[%clk 0:02:03.8]} 18... a6 {[%clk 0:02:21.5]} 19. Rac1 {[%clk 0:02:01.9]}
19... Kf8 {[%clk 0:02:20.9]} 20. Kf2 {[%clk 0:01:56]} 20... h6 {[%clk
0:02:09.3]} 21. Rc3 {[%clk 0:01:53.3]} 21... Rd3 {[%clk 0:02:05.5]} 22. Rxd3
{[%clk 0:01:45.9]} 22... cxd3 {[%clk 0:02:04.6]} 23. Rc1 {[%clk 0:01:46.4]}
23... Rd8 {[%clk 0:01:37.3]} 24. Rd1 {[%clk 0:01:40.2]} 24... Bc6 {[%clk
0:01:35.4]} 25. b3 {[%clk 0:01:38.2]} 25... Bb5 {[%clk 0:01:32.1]} 26. Bf1
{[%clk 0:01:36.5]} 26... Rc8 {[%clk 0:01:23.2]} 27. Bxd3 {[%clk 0:01:28.9]}
27... Bxd3 {[%clk 0:01:22.7]} 28. Rxd3 {[%clk 0:01:29.8]} 28... Rc2+ {[%clk
0:01:21.9]} 29. Rd2 {[%clk 0:01:28.8]} 29... Rc3 {[%clk 0:01:20.1]} 30. Bd4
{[%clk 0:01:27]} 30... Rc1 {[%clk 0:01:18.7]} 31. Bxf6 {[%clk 0:01:21.9]} 31...
gxf6 {[%clk 0:01:17.7]} 32. g4 {[%clk 0:01:22.6]} 32... Ke7 {[%clk 0:01:17.4]}
33. Kg3 {[%clk 0:01:20.9]} 33... Rc3 {[%clk 0:01:11.3]} 34. Rf2 {[%clk
0:01:09.9]} 34... a5 {[%clk 0:01:07.7]} 35. h4 {[%clk 0:01:07.1]} 35... Kd6
{[%clk 0:01:02.8]} 36. Rd2+ {[%clk 0:01:04.2]} 36... Kc6 {[%clk 0:01:02.2]} 37.
Rd8 {[%clk 0:01:01.6]} 37... Rc2 {[%clk 0:00:59.8]} 38. Rc8+ {[%clk 0:01:01.4]}
1-0

[Event "*** Titled Tuesday Blitz"]
[Site "Chess.com"]
[Date "2021.03.02"]
[Round "7"]
[White "Arkady_Gitelson"]
[Black "esapunov"]
[Result "0-1"]
[WhiteElo "2563"]
[BlackElo "2712"]
[TimeControl "180+1"]
[EndTime "11:16:57 PST"]
[Termination "esapunov won on time"]

1. Nf3 {[%clk 0:03:00.9]} 1... Nf6 {[%clk 0:02:59.5]} 2. g3 {[%clk 0:03:00]}
2... g6 {[%clk 0:02:59.5]} 3. Bg2 {[%clk 0:03:00.7]} 3... Bg7 {[%clk 0:03:00.2]}
4. O-O {[%clk 0:03:01.4]} 4... O-O {[%clk 0:03:00.9]} 5. d4 {[%clk 0:03:02.1]}
5... d6 {[%clk 0:03:01.5]} 6. h3 {[%clk 0:03:02]} 6... Nbd7 {[%clk 0:02:57.8]}
7. c4 {[%clk 0:03:01.4]} 7... e5 {[%clk 0:02:57.8]} 8. Nc3 {[%clk 0:03:01.2]}
8... Re8 {[%clk 0:02:57.5]} 9. Qc2 {[%clk 0:02:57.6]} 9... c6 {[%clk 0:02:56.5]}
10. Rd1 {[%clk 0:02:56.1]} 10... Qe7 {[%clk 0:02:52.9]} 11. dxe5 {[%clk
0:02:51.9]} 11... dxe5 {[%clk 0:02:52.4]} 12. e4 {[%clk 0:02:50.8]} 12... a5
{[%clk 0:02:46.4]} 13. b3 {[%clk 0:02:49.3]} 13... Qd8 {[%clk 0:02:41.1]} 14.
Ba3 {[%clk 0:02:47.5]} 14... Bf8 {[%clk 0:02:40.8]} 15. Bxf8 {[%clk 0:02:46.3]}
15... Kxf8 {[%clk 0:02:40.2]} 16. Qd2 {[%clk 0:02:39.9]} 16... Kg7 {[%clk
0:02:35.6]} 17. Nh4 {[%clk 0:02:33]} 17... h6 {[%clk 0:02:31.9]} 18. Nf3 {[%clk
0:01:52.2]} 18... Qe7 {[%clk 0:02:29.5]} 19. a3 {[%clk 0:01:40.2]} 19... Nc5
{[%clk 0:02:28.4]} 20. Qc2 {[%clk 0:01:40]} 20... Qc7 {[%clk 0:02:24.9]} 21. b4
{[%clk 0:01:38.5]} 21... Ne6 {[%clk 0:02:25.3]} 22. c5 {[%clk 0:01:32.7]} 22...
Nh7 {[%clk 0:02:24.6]} 23. Na4 {[%clk 0:01:30]} 23... axb4 {[%clk 0:02:22.3]}
24. axb4 {[%clk 0:01:29.5]} 24... Nhg5 {[%clk 0:02:22.2]} 25. Nxg5 {[%clk
0:00:50.7]} 25... hxg5 {[%clk 0:02:21.4]} 26. Nb6 {[%clk 0:00:50.5]} 26... Rxa1
{[%clk 0:02:20.5]} 27. Rxa1 {[%clk 0:00:51.4]} 27... Nd4 {[%clk 0:02:20.8]} 28.
Qb2 {[%clk 0:00:50.5]} 28... Rh8 {[%clk 0:02:14]} 29. g4 {[%clk 0:00:49.4]}
29... Be6 {[%clk 0:02:07.9]} 30. Rd1 {[%clk 0:00:47.3]} 30... Rd8 {[%clk
0:02:06.3]} 31. Kh1 {[%clk 0:00:47.1]} 31... Qe7 {[%clk 0:02:02]} 32. Bf1 {[%clk
0:00:46.4]} 32... Qf6 {[%clk 0:02:01.8]} 33. Bg2 {[%clk 0:00:43.1]} 33... Qf4
{[%clk 0:01:59.1]} 34. Qd2 {[%clk 0:00:39.1]} 34... Nf3 {[%clk 0:01:52.5]} 0-1

[Event "*** Titled Tuesday Blitz"]
[Site "Chess.com"]
[Date "2021.03.02"]
[Round "7"]
[White "Evachess2006"]
[Black "mr65"]
[Result "0-1"]
[WhiteElo "1600"]
[BlackElo "2088"]
[TimeControl "180+1"]
[EndTime "11:17:04 PST"]
[Termination "mr65 won on time"]

1. e4 {[%clk 0:03:00.9]} 1... e5 {[%clk 0:02:59.1]} 2. Nf3 {[%clk 0:02:47.3]}
2... Nc6 {[%clk 0:02:58.8]} 3. Bc4 {[%clk 0:02:40.4]} 3... Nf6 {[%clk
0:02:58.3]} 4. d3 {[%clk 0:02:40]} 4... Bc5 {[%clk 0:02:56.9]} 5. O-O {[%clk
0:02:36.2]} 5... h6 {[%clk 0:02:56.6]} 6. Be3 {[%clk 0:02:24.8]} 6... Bb6 {[%clk
0:02:53.3]} 7. Bxb6 {[%clk 0:02:23.2]} 7... axb6 {[%clk 0:02:51.7]} 8. Nbd2
{[%clk 0:02:20.9]} 8... O-O {[%clk 0:02:50.4]} 9. c3 {[%clk 0:02:20]} 9... d5
{[%clk 0:02:49.9]} 10. exd5 {[%clk 0:02:17]} 10... Nxd5 {[%clk 0:02:49.3]} 11.
Bxd5 {[%clk 0:02:15.7]} 11... Qxd5 {[%clk 0:02:47.2]} 12. Qe2 {[%clk 0:02:04.6]}
12... Bf5 {[%clk 0:02:43.3]} 13. Ne4 {[%clk 0:02:01.3]} 13... Rxa2 {[%clk
0:02:35.5]} 14. c4 {[%clk 0:01:56.2]} 14... Qa5 {[%clk 0:02:34.4]} 15. Rxa2
{[%clk 0:01:50.7]} 15... Qxa2 {[%clk 0:02:33.8]} 16. Ng3 {[%clk 0:01:51.2]}
16... Bg6 {[%clk 0:02:31.4]} 17. Rd1 {[%clk 0:01:35.3]} 17... Qb3 {[%clk
0:02:21.4]} 18. d4 {[%clk 0:01:18.8]} 18... exd4 {[%clk 0:02:14]} 19. Nxd4
{[%clk 0:01:16.9]} 19... Nxd4 {[%clk 0:02:12.4]} 20. Rxd4 {[%clk 0:01:11]} 20...
Ra8 {[%clk 0:02:06.5]} 21. h3 {[%clk 0:01:01.1]} 21... Ra1+ {[%clk 0:02:00]} 22.
Kh2 {[%clk 0:00:59.7]} 22... Rc1 {[%clk 0:01:57.6]} 23. Rd8+ {[%clk 0:00:45.7]}
23... Kh7 {[%clk 0:01:55.5]} 24. Ne4 {[%clk 0:00:23.2]} 24... Qxc4 {[%clk
0:01:38]} 25. Nf6+ {[%clk 0:00:06]} 25... gxf6 {[%clk 0:01:34.2]} 26. g3 {[%clk
0:00:01.1]} 26... Qxe2 {[%clk 0:01:28]} 0-1

[Event "*** Titled Tuesday Blitz"]
[Site "Chess.com"]
[Date "2021.03.02"]
[Round "7"]
[White "cukin84"]
[Black "Fraler15"]
[Result "1-0"]
[WhiteElo "2148"]
[BlackElo "2266"]
[TimeControl "180+1"]
[EndTime "11:17:12 PST"]
[Termination "cukin84 won by checkmate"]

1. e4 {[%clk 0:03:00.9]} 1... c5 {[%clk 0:02:55]} 2. Nc3 {[%clk 0:02:59.8]} 2...
Nc6 {[%clk 0:02:53.8]} 3. Bb5 {[%clk 0:02:59]} 3... Nd4 {[%clk 0:02:51.9]} 4.
Bc4 {[%clk 0:02:58.5]} 4... g6 {[%clk 0:02:50.2]} 5. Nf3 {[%clk 0:02:58.5]} 5...
Bg7 {[%clk 0:02:49.7]} 6. Nxd4 {[%clk 0:02:58.2]} 6... cxd4 {[%clk 0:02:48.3]}
7. Qf3 {[%clk 0:02:57.9]} 7... e6 {[%clk 0:02:45.2]} 8. Nb5 {[%clk 0:02:56.9]}
8... Qb6 {[%clk 0:02:34]} 9. Qg3 {[%clk 0:02:53.2]} 9... e5 {[%clk 0:02:30.4]}
10. Qa3 {[%clk 0:02:50.2]} 10... Ne7 {[%clk 0:02:26.6]} 11. Nd6+ {[%clk
0:02:46.9]} 11... Kf8 {[%clk 0:02:26.9]} 12. Nxf7 {[%clk 0:02:43]} 12... Rg8
{[%clk 0:02:26.5]} 13. O-O {[%clk 0:02:38.3]} 13... d5 {[%clk 0:02:23.6]} 14.
exd5 {[%clk 0:02:33.6]} 14... Kxf7 {[%clk 0:02:21.7]} 15. d6+ {[%clk 0:02:33.7]}
15... Be6 {[%clk 0:02:20.7]} 16. Bxe6+ {[%clk 0:02:30.9]} 16... Kxe6 {[%clk
0:02:21.6]} 17. dxe7 {[%clk 0:02:30.8]} 17... Bf6 {[%clk 0:02:16.3]} 18. Qh3+
{[%clk 0:02:22.1]} 18... Kxe7 {[%clk 0:02:14.9]} 19. c3 {[%clk 0:02:22.4]} 19...
dxc3 {[%clk 0:02:12]} 20. dxc3 {[%clk 0:02:22]} 20... h5 {[%clk 0:02:08]} 21.
Be3 {[%clk 0:02:20.4]} 21... Qc6 {[%clk 0:02:02.9]} 22. b4 {[%clk 0:02:12.6]}
22... Rad8 {[%clk 0:01:57.1]} 23. Bc5+ {[%clk 0:02:11.4]} 23... Kf7 {[%clk
0:01:56.7]} 24. Rad1 {[%clk 0:02:09.8]} 24... b6 {[%clk 0:01:53.8]} 25. Be3
{[%clk 0:02:03.2]} 25... e4 {[%clk 0:01:42.8]} 26. Bd4 {[%clk 0:01:48.1]} 26...
Bxd4 {[%clk 0:01:39.8]} 27. cxd4 {[%clk 0:01:43.9]} 27... Kg7 {[%clk 0:01:09.4]}
28. Rc1 {[%clk 0:01:34.9]} 28... Qd7 {[%clk 0:01:08.5]} 29. Qe3 {[%clk
0:01:24.4]} 29... Qxd4 {[%clk 0:01:06.9]} 30. Rc7+ {[%clk 0:01:23.7]} 30... Kf6
{[%clk 0:00:55.1]} 31. Qf4+ {[%clk 0:01:19.5]} 31... Ke6 {[%clk 0:00:55.2]} 32.
Qf7+ {[%clk 0:01:15.7]} 32... Ke5 {[%clk 0:00:51.1]} 33. Re7+ {[%clk 0:00:48.5]}
33... Kd6 {[%clk 0:00:47.2]} 34. Qe6# {[%clk 0:00:47.5]} 1-0